bitfinex-derivatives/quotes_SOLF0:USTF0_20250331
["timestamp","ask_amount","ask_price","bid_price","bid_amount"]
[1743425099909,8.0344,124.48,124.46,0.05178603]
[1743425102716,8.0347,124.47,124.46,0.05178603]
[1743425102909,23.44767363,124.47,124.36,2.0656]
[1743425103215,23.44767363,124.45,124.36,2.0656]
[1743425103613,4.3525,124.46,124.36,2.0656]
[1743425103807,4.3525,124.46,124.37,23.44767363]
[1743425104013,0.05178603,124.42,124.4,0.05189002]
[1743425104218,0.05178603,124.42,124.41,8.0385]
[1743425105815,0.05178603,124.42,124.4,70.09069002]
[1743425106016,0.05178603,124.42,124.4,0.05189002]
[1743425106413,0.05178603,124.42,124.41,8.0385]
[1743425106614,0.05178603,124.42,124.4,0.05189002]
[1743425107617,8.0385,124.41,124.4,0.05189002]
[1743425109319,0.05178603,124.42,124.34,4.2402]
[1743425109519,25.46357363,124.45,124.34,4.2402]
[1743425109713,8.0401,124.39,124.36,8.0415]
[1743425110022,25.46357363,124.45,124.34,4.2402]
[1743425110215,8.0395,124.4,124.37,8.0407]
[1743425110415,8.0395,124.4,124.38,0.05300608]
[1743425111022,8.0398,124.39,124.38,0.05300608]
[1743425112121,0.05742844,124.41,124.38,0.05300608]
[1743425113019,8.09632844,124.41,124.38,8.09300608]
[1743425113522,8.0392,124.4,124.38,8.09300608]
[1743425113822,0.05742844,124.41,124.38,0.05300608]
[1743425114024,8.0398,124.39,124.38,0.05300608]
[1743425114823,8.0418,124.36,124.33,8.0434]
[1743425115117,8.0418,124.36,124.31,25.56477363]
[1743425115722,8.0424,124.35,124.31,25.56477363]
[1743425115921,0.06131251,124.35,124.32,0.05757122]
[1743425116615,0.06131251,124.35,124.34,8.0431]
[1743425116821,0.06131251,124.35,124.32,0.05757122]
[1743425117325,0.06131251,124.35,124.32,62.05757122]
[1743425117522,8.10411251,124.35,124.32,62.05757122]
[1743425117826,0.06131251,124.35,124.32,62.05757122]
[1743425118321,0.06131251,124.35,124.34,8.0431]
[1743425119224,0.06131251,124.35,124.32,62.05757122]
[1743425121426,0.06131251,124.35,124.34,8.0431]
[1743425121625,8.10401251,124.35,124.32,62.05757122]
[1743425121820,0.06131251,124.35,124.32,62.05757122]
[1743425122125,0.06131251,124.35,124.32,70.10147122]
[1743425122424,8.10411251,124.35,124.33,8.0437]
[1743425122626,0.06131251,124.35,124.32,62.05757122]
[1743425123420,23.44767363,124.45,124.33,23.44767363]
[1743425123724,6.1333,124.46,124.37,23.44767363]
[1743425124023,8.0369,124.44,124.42,8.0375]
[1743425124226,6.1333,124.46,124.39,23.44767363]
[1743425124418,8.0384,124.42,124.39,23.44767363]
[1743425124620,0.05659783,124.44,124.41,0.06048156]
[1743425124926,23.44767363,124.43,124.31,25.56477363]
[1743425125124,8.0414,124.37,124.34,8.0428]
[1743425125322,23.44767363,124.43,124.31,25.56477363]
[1743425125631,23.44767363,124.43,124.35,8.0421]
[1743425125817,0.05328442,124.38,124.36,0.05345198]
[1743425126021,23.44767363,124.43,124.36,0.05345198]
[1743425126226,0.05769551,124.38,124.36,0.05345198]
[1743425126523,6.0216,124.4,124.36,0.05345198]
[1743425126726,8.10179774,124.38,124.36,0.05345198]
[1743425126927,0.06129774,124.38,124.36,0.05345198]
[1743425127824,0.06129774,124.38,124.37,8.0411]
[1743425129325,23.44767363,124.45,124.39,8.0395]
[1743425129530,6.1856,124.44,124.39,8.0395]
[1743425129923,8.0379,124.42,124.39,8.0395]
[1743425130524,0.05822352,124.42,124.39,0.0572575]
[1743425130927,8.0392,124.4,124.39,0.0572575]
[1743425131123,0.05822352,124.42,124.34,8.0427]
[1743425131324,23.44767363,124.43,124.34,8.0427]
[1743425132025,23.44767363,124.41,124.35,8.0424]
[1743425132221,0.05218791,124.4,124.37,0.06015022]
[1743425133121,8.09168791,124.4,124.37,0.06015022]
[1743425133326,0.05218791,124.4,124.37,0.06015022]
[1743425133827,8.0399,124.39,124.37,0.06015022]
[1743425134025,0.05218791,124.4,124.37,0.06015022]
[1743425134435,8.0401,124.39,124.37,0.06015022]
[1743425134627,0.05218791,124.4,124.37,0.06015022]
[1743425135031,8.09138791,124.4,124.37,8.10105022]
[1743425135226,0.05218791,124.4,124.37,8.10105022]
[1743425135427,0.05218791,124.4,124.37,0.06015022]
[1743425136026,0.05218791,124.4,124.37,23.50782385]
[1743425136227,0.05218791,124.4,124.39,8.0398]
[1743425136423,0.05218791,124.4,124.37,0.06015022]
[1743425137333,8.0399,124.39,124.37,0.06015022]
[1743425137533,0.05218791,124.4,124.37,0.06015022]
[1743425139431,8.09168791,124.4,124.37,0.06015022]
[1743425139835,0.05218791,124.4,124.37,0.06015022]
[1743425140033,0.05218791,124.4,124.37,8.10105022]
[1743425141234,0.05218791,124.4,124.37,0.06015022]
[1743425142140,8.0443,124.33,124.31,2.1171]
[1743425142333,2.0433,124.39,124.29,23.44767363]
[1743425143238,0.06050559,124.35,124.33,0.06172288]
[1743425143839,0.06050559,124.35,124.33,8.10512288]
[1743425144039,0.06050559,124.35,124.33,0.06172288]
[1743425144441,8.10320559,124.35,124.33,0.06172288]
[1743425145140,8.0431,124.34,124.33,0.06172288]
[1743425145336,0.06050559,124.35,124.33,0.06172288]
[1743425146436,8.0431,124.34,124.33,0.06172288]
[1743425147441,0.06050559,124.35,124.25,23.44767363]
[1743425147638,23.44767363,124.36,124.25,23.44767363]
[1743425147838,2.1336,124.35,124.27,8.0472]
[1743425148046,8.0447,124.32,124.25,23.44767363]
[1743425148236,2.1336,124.35,124.28,8.0465]
[1743425148744,0.05632353,124.33,124.3,8.1071396]
[1743425149338,0.05632353,124.33,124.31,8.0449]
[1743425149739,0.05632353,124.33,124.3,0.0618396]
[1743425150344,8.10042353,124.33,124.3,0.0618396]
[1743425150544,0.05632353,124.33,124.3,0.0618396]
[1743425150948,8.045,124.31,124.3,0.0618396]
[1743425152146,8.0444,124.32,124.3,0.0618396]
[1743425152541,0.05632353,124.33,124.3,0.0618396]
[1743425153143,0.05632353,124.33,124.3,6.5119396]
[1743425153342,0.05632353,124.33,124.32,8.0444]
[1743425153742,8.10032353,124.33,124.3,2.1990396]
[1743425153950,0.05632353,124.33,124.3,2.1990396]
[1743425154349,0.05632353,124.33,124.32,8.0444]
[1743425156451,0.05632353,124.33,124.3,0.0618396]
[1743425157444,8.045,124.31,124.3,0.0618396]
[1743425159147,8.0445,124.32,124.3,0.0618396]
[1743425161049,8.045,124.31,124.3,0.0618396]
[1743425161453,8.0447,124.32,124.3,0.0618396]
[1743425161847,0.05632353,124.33,124.3,0.0618396]
[1743425162051,8.045,124.31,124.3,0.0618396]
[1743425162947,0.05632353,124.33,124.23,27.66947363]
[1743425163151,2.0819,124.32,124.23,27.66947363]
[1743425163552,8.0454,124.31,124.23,27.66947363]
[1743425163751,2.0819,124.32,124.23,27.66947363]
[1743425164153,0.05150682,124.29,124.26,0.05666218]
[1743425164455,0.05150682,124.29,124.25,23.44767363]
[1743425164655,0.05150682,124.29,124.26,0.05851832]
[1743425164950,0.05150682,124.29,124.28,8.0469]
[1743425165955,0.05150682,124.29,124.28,70.0469]
[1743425166354,0.05150682,124.29,124.27,8.0473]
[1743425166752,0.05150682,124.29,124.26,0.05851832]
[1743425167354,0.05150682,124.29,124.26,8.10631832]
[1743425167556,0.05150682,124.29,124.26,0.05851832]
[1743425167756,8.09830682,124.29,124.26,0.05851832]
[1743425167957,0.05150682,124.29,124.26,0.05851832]
[1743425168358,0.05150682,124.29,124.16,446.83858047]
[1743425168555,2.23050682,124.29,124.21,8.0509]
[1743425168857,8.0492,124.25,124.21,8.0509]
[1743425169261,8.0501,124.24,124.21,62.0]
[1743425169453,23.44767363,124.28,124.17,29.66267363]
[1743425169653,0.05202717,124.24,124.21,0.06052481]
[1743425169863,8.0506,124.23,124.21,0.06052481]
[1743425170664,8.10172717,124.24,124.21,0.06052481]
[1743425171263,0.05202717,124.24,124.21,0.06052481]
[1743425171657,0.05202717,124.24,124.21,8.11172481]
[1743425172059,0.05202717,124.24,124.21,0.06052481]
[1743425172269,40.1972,124.34,124.21,23.50819844]
[1743425172471,6.1343,124.33,124.22,62.0]
[1743425172672,8.0474,124.28,124.22,62.0]
[1743425172871,6.1343,124.33,124.22,62.0]
[1743425173374,0.05868593,124.28,124.26,0.06051631]
[1743425173764,0.05868593,124.28,124.26,8.10851631]
[1743425174069,0.05868593,124.28,124.26,0.06051631]
[1743425174474,8.0476,124.27,124.26,0.06051631]
[1743425175077,0.05868593,124.28,124.26,0.06051631]
[1743425175776,0.05868593,124.28,124.26,8.10841631]
[1743425175978,0.05868593,124.28,124.26,0.06051631]
[1743425176278,0.05868593,124.28,124.27,8.0476]
[1743425176477,6.3097,124.36,124.27,23.44767363]
[1743425176777,8.0455,124.31,124.28,8.0465]
[1743425177275,29.75737363,124.36,124.3,8.0456]
[1743425177276,8.0439,124.33,124.3,8.0456]
[1743425177471,29.75737363,124.36,124.3,8.0456]
[1743425177671,0.06119271,124.33,124.3,0.0597035]
[1743425177977,8.0451,124.31,124.3,0.0597035]
[1743425180480,8.0479,124.27,124.23,4.1385]
[1743425180880,8.0479,124.27,124.24,8.0492]
[1743425181081,23.44767363,124.32,124.23,4.1385]
[1743425181082,8.0472,124.28,124.23,4.1385]
[1743425181477,8.0472,124.28,124.25,8.0488]
[1743425181679,0.05763368,124.27,124.25,8.0488]
[1743425181871,0.05763368,124.27,124.24,0.05901579]
[1743425182076,0.05763368,124.27,124.25,8.0485]
[1743425182881,8.10533368,124.27,124.25,8.0485]
[1743425183679,0.05763368,124.27,124.25,8.0485]
[1743425184079,0.05763368,124.27,124.24,0.05901579]
[1743425185084,0.05763368,124.27,124.26,8.0482]
[1743425185283,0.05763368,124.27,124.24,0.05901579]
[1743425185284,16.0853,124.35,124.24,0.05901579]
[1743425185483,16.0853,124.35,124.23,4.1385]
[1743425185684,8.0451,124.31,124.23,4.1385]
[1743425185885,16.0853,124.35,124.23,4.1385]
[1743425186378,8.10641498,124.3,124.28,0.05298393]
[1743425186583,16.0853,124.35,124.28,0.05298393]
[1743425186783,0.05163544,124.3,124.28,8.09978393]
[1743425186981,16.0853,124.35,124.28,8.09978393]
[1743425187181,0.05570422,124.3,124.28,8.09978393]
[1743425187385,16.0853,124.35,124.28,8.09978393]
[1743425187683,29.75737363,124.36,124.28,0.05298393]
[1743425187885,8.0453,124.31,124.25,2.0656]
[1743425188083,6.3097,124.36,124.31,0.05384495]
[1743425188385,8.0437,124.33,124.32,0.05975708]
[1743425190281,8.1013592,124.34,124.32,8.10405708]
[1743425190586,0.0579592,124.34,124.32,0.05975708]
[1743425190985,0.0579592,124.34,124.33,8.0437]
[1743425191185,88.5568342,124.38,124.32,23.50743071]
[1743425191383,88.5568342,124.38,124.36,8.0418]
[1743425192388,88.61472311,124.38,124.36,8.0418]
[1743425192581,88.61472311,124.38,124.35,4.23980346]
[1743425192582,88.61472311,124.38,124.35,0.05810346]
[1743425194384,8.0418,124.36,124.35,0.05810346]
[1743425194591,112.06239674,124.38,124.26,23.44767363]
[1743425194793,29.77177363,124.36,124.25,4.2972]
[1743425195488,29.77177363,124.36,124.26,23.44767363]
[1743425195690,0.05098454,124.32,124.29,0.05830792]
[1743425196385,8.0453,124.31,124.29,0.05830792]
[1743425196891,0.05098454,124.32,124.29,0.05830792]
[1743425197090,8.0454,124.31,124.29,0.05830792]
[1743425197690,8.0456,124.31,124.29,0.05830792]
[1743425198793,0.05098454,124.32,124.29,0.05830792]
[1743425199292,8.09568454,124.32,124.29,8.10460792]
[1743425199691,8.09568454,124.32,124.29,0.05830792]
[1743425200290,0.05098454,124.32,124.29,0.05830792]
[1743425200995,0.05098454,124.32,124.3,8.0456]
[1743425201294,0.05098454,124.32,124.29,0.05830792]
[1743425201893,0.05098454,124.32,124.3,23.44767363]
[1743425202089,0.05098454,124.32,124.31,8.045]
[1743425203792,0.05098454,124.32,124.31,70.045]
[1743425205588,0.05098454,124.32,124.31,8.045]
[1743425208492,88.5568342,124.38,124.31,8.04]
[1743425208692,88.5568342,124.38,124.33,23.44767363]
[1743425208893,88.5568342,124.38,124.34,8.0428]
[1743425209394,52.40462277,124.37,124.34,8.0428]
[1743425209594,44.4244107,124.37,124.35,8.0423]
[1743425209900,52.4655107,124.37,124.34,0.06057708]
[1743425210097,44.4244107,124.37,124.34,0.06057708]
[1743425210999,52.4659107,124.37,124.34,8.10327708]
[1743425211798,52.4659107,124.37,124.34,0.06057708]
[1743425211799,44.4244107,124.37,124.34,0.06057708]
[1743425212494,0.06118793,124.37,124.35,8.042]
[1743425212894,0.06118793,124.37,124.34,62.06057708]
[1743425213101,0.06118793,124.37,124.35,8.0419]
[1743425213395,0.06118793,124.37,124.34,0.06057708]
[1743425213601,0.06118793,124.37,124.36,8.0418]
[1743425216601,4.1952,124.43,124.39,8.0394]
[1743425217596,8.09822351,124.42,124.4,0.0547095]
[1743425218302,8.0385,124.41,124.4,0.0547095]
[1743425218707,8.09812351,124.42,124.4,0.0547095]
[1743425220801,8.0385,124.41,124.4,0.0547095]
[1743425221501,8.09802351,124.42,124.4,0.0547095]
[1743425222408,8.09802351,124.42,124.4,8.0936095]
[1743425222800,0.05982351,124.42,124.4,0.0547095]
[1743425223004,0.05982351,124.42,124.41,8.0385]
[1743425226106,0.05982351,124.42,124.4,0.0547095]
[1743425226510,8.09812351,124.42,124.4,0.0547095]
[1743425226804,23.50349876,124.42,124.31,22.36508272]
[1743425227009,23.44367525,124.42,124.31,28.57248272]
[1743425227211,23.44367525,124.4,124.32,8.0439]
[1743425227409,23.44367525,124.4,124.31,24.42096018]
[1743425227605,23.44367525,124.4,124.34,8.0428]
[1743425227811,23.44367525,124.4,124.31,24.42096018]
[1743425228110,8.0411,124.37,124.36,0.05080156]
[1743425229007,8.0431,124.34,124.31,18.21356018]
[1743425229405,23.44367525,124.36,124.31,18.21356018]
[1743425229714,23.44367525,124.34,124.3,88.83858047]
[1743425230013,4.1961,124.35,124.24,23.44367525]
[1743425230309,0.05544942,124.33,124.31,0.05656711]
[1743425230509,23.44367525,124.42,124.32,23.44367525]
[1743425230713,23.44367525,124.44,124.32,23.44367525]
[1743425231710,0.05251022,124.39,124.37,0.06113234]
[1743425232108,23.44367525,124.44,124.37,0.06113234]
[1743425232308,0.06171163,124.39,124.37,0.06113234]
[1743425232512,8.038,124.42,124.37,0.06113234]
[1743425232815,0.05902071,124.39,124.37,0.06113234]
[1743425234314,8.0411,124.38,124.32,8.044]
[1743425235009,8.0411,124.38,124.29,6.1482]
[1743425235010,23.44367525,124.4,124.31,8.0448]
[1743425235416,0.05589518,124.37,124.34,0.05744049]
[1743425235920,0.05589518,124.37,124.29,6.1482]
[1743425236216,23.44367525,124.38,124.29,6.1482]
[1743425236515,23.44367525,124.38,124.31,8.0447]
[1743425236817,8.0421,124.36,124.32,8.0443]
[1743425237020,8.10011772,124.36,124.33,0.05916599]
[1743425237221,0.05801772,124.36,124.33,0.05916599]
[1743425238021,8.10011772,124.36,124.33,0.05916599]
[1743425239223,8.0425,124.35,124.33,0.05916599]
[1743425240118,8.10011772,124.36,124.33,8.10266599]
[1743425240320,0.05801772,124.36,124.33,8.10266599]
[1743425240521,52.40112277,124.43,124.35,14.67103135]
[1743425240722,44.36322277,124.43,124.37,14.67103135]
[1743425241123,8.0392,124.4,124.37,22.71183135]
[1743425241323,8.0392,124.4,124.34,2.0162]
[1743425241522,14.67103135,124.42,124.33,14.67103135]
[1743425241725,8.09889414,124.38,124.36,0.05805376]
[1743425241923,0.05829414,124.38,124.3,2.0162]
[1743425242123,23.51995561,124.38,124.29,66.119]
[1743425242322,23.46166147,124.38,124.29,66.119]
[1743425242521,8.0421,124.36,124.32,8.044]
[1743425243125,0.05176499,124.35,124.33,0.05975884]
[1743425243723,0.05176499,124.35,124.33,8.10295884]
[1743425244025,0.05176499,124.35,124.33,0.05975884]
[1743425245221,8.09426499,124.35,124.33,0.05975884]
[1743425245420,0.05176499,124.35,124.33,0.05975884]
[1743425248723,8.09426499,124.35,124.33,0.05975884]
[1743425249827,23.46166147,124.43,124.33,0.05975884]
[1743425250027,23.46166147,124.43,124.32,23.46166147]
[1743425250028,23.83326147,124.43,124.32,23.46166147]
[1743425250224,23.83326147,124.43,124.34,8.0425]
[1743425250626,8.0411,124.37,124.3,25.56816147]
[1743425250925,8.0411,124.37,124.33,8.0431]
[1743425251123,0.05085015,124.35,124.33,8.0431]
[1743425251316,23.46166147,124.41,124.33,8.0431]
[1743425251516,0.05171045,124.35,124.33,8.10382551]
[1743425251723,8.0415,124.37,124.33,8.0431]
[1743425251925,0.05290638,124.35,124.34,8.043]
[1743425252123,0.1092,124.42,124.32,23.46166147]
[1743425252325,8.0391,124.41,124.32,23.46166147]
[1743425252522,8.0391,124.41,124.34,23.46166147]
[1743425252921,8.0381,124.42,124.38,8.0403]
[1743425253324,0.06017836,124.41,124.39,0.05609868]
[1743425253635,8.09917836,124.41,124.39,0.05609868]
[1743425253927,0.06017836,124.41,124.39,0.05609868]
[1743425254128,8.0392,124.4,124.39,0.05609868]
[1743425254532,8.0392,124.4,124.39,9.868e-05]
[1743425257130,23.52183983,124.41,124.3,2.0218]
[1743425257324,44.36322277,124.46,124.33,23.46166147]
[1743425257526,67.82488424,124.46,124.35,23.46166147]
[1743425257727,44.36322277,124.46,124.37,23.46166147]
[1743425257922,16.5989,124.47,124.37,23.46166147]
[1743425258125,8.0396,124.4,124.36,4.1075]
[1743425258328,0.05791108,124.43,124.41,0.05890485]
[1743425258531,23.46166147,124.46,124.37,8.0407]
[1743425258719,8.0379,124.42,124.41,0.0534144]
[1743425259829,8.08990633,124.43,124.41,0.0534144]
[1743425260128,0.05250633,124.43,124.41,0.0534144]
[1743425260329,8.0379,124.42,124.41,0.0534144]
[1743425261030,0.05250633,124.43,124.41,0.0534144]
[1743425261329,40.1147,124.66,124.41,31.55507587]
[1743425261524,23.46166147,124.56,124.45,23.46166147]
[1743425261919,23.46166147,124.56,124.46,8.0351]
[1743425262330,0.05098178,124.52,124.5,0.05253473]
[1743425262628,8.0326,124.51,124.5,0.05253473]
[1743425264633,141.8225827,124.51,124.5,3.473e-05]
[1743425268039,133.7899827,124.51,124.5,3.473e-05]
[1743425268639,8.08278178,124.52,124.5,3.473e-05]
[1743425268938,0.05098178,124.52,124.5,3.473e-05]
[1743425270534,0.05098178,124.52,124.5,8.03233473]
[1743425270737,23.46166147,124.6,124.5,3.473e-05]
[1743425271037,23.46166147,124.6,124.49,85.46166147]
[1743425271840,0.05766405,124.56,124.53,0.05227888]
[1743425272438,0.05766405,124.56,124.54,8.0297]
[1743425272640,0.05766405,124.56,124.54,2.0297]
[1743425272941,8.0301,124.54,124.53,0.05227888]
[1743425273942,0.05766405,124.56,124.53,0.05227888]
[1743425274534,8.0301,124.54,124.53,0.05227888]
[1743425276536,8.0321,124.51,124.5,2.0297]
[1743425278143,8.08890613,124.52,124.5,2.0297]
[1743425278842,0.05720613,124.52,124.5,2.0297]
[1743425279938,0.05720613,124.52,124.49,0.05296353]
[1743425280349,8.0327,124.5,124.49,0.05296353]
[1743425281550,0.05720613,124.52,124.49,0.05296353]
[1743425281742,0.05720613,124.52,124.49,8.08636353]
[1743425282046,8.08900613,124.52,124.49,0.05296353]
[1743425282647,0.05720613,124.52,124.49,0.05296353]
[1743425283043,8.0324,124.51,124.49,0.05296353]
[1743425283347,0.05720613,124.52,124.49,0.05296353]
[1743425283750,8.0322,124.51,124.49,0.05296353]
[1743425284353,0.05720613,124.52,124.49,0.05296353]
[1743425284752,0.05720613,124.52,124.49,8.08576353]
[1743425284950,0.05720613,124.52,124.49,0.05296353]
[1743425285252,0.05720613,124.52,124.5,8.0324]
[1743425285646,0.05720613,124.52,124.49,0.05296353]
[1743425285853,2.0024,124.58,124.49,23.45091656]
[1743425286054,23.39795303,124.6,124.49,23.39795303]
[1743425286247,8.0266,124.6,124.58,8.0275]
[1743425286649,8.0266,124.6,124.54,4.096]
[1743425286841,0.05293085,124.58,124.57,8.0279]
[1743425287042,0.05293085,124.58,124.56,0.05093378]
[1743425288143,8.0282,124.57,124.56,0.05093378]
[1743425293461,8.08093085,124.58,124.56,0.05093378]
[1743425293761,0.05293085,124.58,124.56,0.05093378]
[1743425293956,8.0282,124.57,124.56,0.05093378]
[1743425295465,0.05293085,124.58,124.56,0.05093378]
[1743425295860,8.0282,124.57,124.56,0.05093378]
[1743425298560,8.0282,124.57,124.56,3.378e-05]
[1743425298865,8.02,124.57,124.48,1.9917]
[1743425299067,23.39795303,124.55,124.48,10.0257]
[1743425299268,23.39795303,124.53,124.45,4.2417]
[1743425299862,0.06045085,124.5,124.48,0.06200501]
[1743425300067,23.39795303,124.55,124.48,8.09560501]
[1743425300368,8.0323,124.51,124.48,8.09560501]
[1743425300564,0.05863469,124.53,124.48,0.06200501]
[1743425301169,8.0333,124.5,124.48,0.06200501]
[1743425301370,23.39795303,124.55,124.48,0.06200501]
[1743425301371,39.45735303,124.55,124.48,0.06200501]
[1743425301568,0.05191026,124.5,124.48,0.06200501]
[1743425301769,8.0334,124.49,124.48,0.06200501]
[1743425302970,8.0351,124.47,124.44,10.028]
[1743425303668,23.39795303,124.53,124.44,1.9917]
[1743425304070,23.39795303,124.53,124.46,8.035]
[1743425304270,0.05381016,124.5,124.47,0.05965558]
[1743425304671,8.0343,124.48,124.47,0.05965558]
[1743425308670,8.0338,124.49,124.47,0.05965558]
[1743425308878,0.05381016,124.5,124.47,0.05965558]
[1743425309769,8.0336,124.49,124.47,0.05965558]
[1743425309973,0.05381016,124.5,124.47,0.05965558]
[1743425310367,8.08681016,124.5,124.47,8.09375558]
[1743425310771,2.0998,124.56,124.47,0.05965558]
[1743425311071,11.06688907,124.58,124.5,23.39795303]
[1743425311268,11.06688907,124.58,124.51,4.1189]
[1743425311670,8.0298,124.55,124.52,8.031]
[1743425311862,8.0298,124.55,124.52,70.031]
[1743425312062,8.08917816,124.55,124.52,70.08302899]
[1743425312273,8.08917816,124.55,124.53,8.0307]
[1743425312572,0.05937816,124.55,124.52,62.05202899]
[1743425313274,0.05937816,124.55,124.54,8.0301]
[1743425314473,23.39795303,124.62,124.52,62.05202899]
[1743425314474,23.39795303,124.62,124.57,8.0279]
[1743425314673,70.22690933,124.64,124.52,85.39795303]
[1743425314874,8.0274,124.59,124.52,85.39795303]
[1743425315074,70.22690933,124.64,124.57,8.0279]
[1743425315375,25.95935303,124.64,124.57,8.0279]
[1743425315674,8.0266,124.6,124.59,0.05421016]
[1743425316267,8.0299,124.55,124.51,362.1189]
[1743425316469,23.39795303,124.58,124.51,12.1505]
[1743425317371,8.0301,124.54,124.53,0.05382249]
[1743425321172,0.05647228,124.56,124.53,0.05382249]
[1743425321576,0.05647228,124.56,124.54,8.0298]
[1743425321773,8.08537228,124.56,124.54,8.0298]
[1743425321979,0.05647228,124.56,124.54,8.0298]
[1743425322778,8.0301,124.54,124.53,0.05382249]
[1743425323772,0.05647228,124.56,124.53,0.05382249]
[1743425324379,8.08567228,124.56,124.53,0.05382249]
[1743425324774,0.05647228,124.56,124.53,0.05382249]
[1743425325180,0.05647228,124.56,124.53,8.08432249]
[1743425325383,8.0295,124.55,124.53,8.08432249]
[1743425325584,0.05647228,124.56,124.53,0.05382249]
[1743425325986,8.08577228,124.56,124.53,70.08432249]
[1743425326180,0.05647228,124.56,124.53,70.08432249]
[1743425327080,0.05647228,124.56,124.53,0.05382249]
[1743425327677,8.0301,124.54,124.53,0.05382249]
[1743425329984,8.0298,124.55,124.53,0.05382249]
[1743425330183,0.05647228,124.56,124.53,0.05382249]
[1743425330579,8.0301,124.54,124.53,0.05382249]
[1743425332584,23.45442531,124.56,124.49,2.1569]
[1743425332780,23.39795303,124.56,124.49,2.1569]
[1743425333485,23.39795303,124.54,124.46,2.1554]
[1743425333687,8.0314,124.52,124.51,0.05829282]
[1743425336491,8.0314,124.52,124.46,2.1554]
[1743425336492,23.39795303,124.52,124.46,2.1554]
[1743425337088,8.0341,124.48,124.46,2.1554]
[1743425337690,8.09159916,124.48,124.46,2.20874885]
[1743425337996,8.0347,124.47,124.46,0.05334885]
[1743425338293,0.05749916,124.48,124.46,0.05334885]
[1743425338494,8.09189916,124.48,124.46,0.05334885]
[1743425338896,0.05749916,124.48,124.46,0.05334885]
[1743425339192,8.0347,124.47,124.46,0.05334885]
[1743425339495,0.05749916,124.48,124.46,0.05334885]
[1743425339695,0.05749916,124.48,124.46,8.08834885]
[1743425339696,8.09179916,124.48,124.46,8.08834885]
[1743425340297,0.05749916,124.48,124.46,0.05334885]
[1743425340498,23.39795303,124.54,124.46,0.05334885]
[1743425340800,23.39795303,124.54,124.44,23.39795303]
[1743425341094,23.39795303,124.52,124.43,4.132]
[1743425341289,8.035,124.47,124.43,4.132]
[1743425341798,0.05626781,124.46,124.44,0.05213476]
[1743425341999,0.05626781,124.46,124.45,8.0359]
[1743425343389,0.05626781,124.46,124.44,8.08843476]
[1743425343994,0.05626781,124.46,124.45,8.0359]
[1743425345210,8.09156781,124.46,124.44,8.08843476]
[1743425346004,0.05626781,124.46,124.45,8.0359]
[1743425347110,14.63897675,124.52,124.44,0.05213476]
[1743425347312,14.63897675,124.54,124.45,14.63897675]
[1743425347501,14.63897675,124.54,124.46,2.1631]
[1743425348010,14.63897675,124.5,124.43,66.132]
[1743425348312,0.05299654,124.48,124.45,8.09025735]
[1743425348510,8.0351,124.47,124.45,8.09025735]
[1743425349908,8.08729654,124.48,124.46,8.0353]
[1743425350103,0.05299654,124.48,124.45,0.05455735]
[1743425350511,14.63897675,124.52,124.45,0.05455735]
[1743425350512,8.0318,124.52,124.45,14.6935341]
[1743425350710,14.63897675,124.54,124.45,14.6935341]
[1743425350916,14.63897675,124.54,124.45,14.63897675]
[1743425351217,14.63897675,124.54,124.49,8.0331]
[1743425351413,14.63897675,124.54,124.45,14.63897675]
[1743425351611,0.05684945,124.53,124.5,0.05584354]
[1743425353008,0.05684945,124.53,124.52,8.0314]
[1743425353817,0.05684945,124.53,124.51,8.0318]
[1743425354016,0.05684945,124.53,124.5,0.05584354]
[1743425354817,8.0319,124.52,124.5,8.08804354]
[1743425356011,0.05684945,124.53,124.5,0.05584354]
[1743425356217,8.0321,124.51,124.5,0.05584354]
[1743425359320,8.032,124.52,124.5,0.05584354]
[1743425359816,8.0321,124.51,124.5,0.05584354]
[1743425363523,8.0347,124.47,124.45,8.0356]
[1743425364723,8.09050362,124.47,124.45,8.09176406]
[1743425365119,8.0353,124.46,124.45,0.05616406]
[1743425365822,8.09070362,124.47,124.45,0.05616406]
[1743425366322,8.09070362,124.47,124.45,8.09176406]
[1743425367322,8.0353,124.46,124.45,0.05616406]
[1743425368020,8.09080362,124.47,124.45,8.09166406]
[1743425368220,0.05580362,124.47,124.45,62.05616406]
[1743425368622,0.05580362,124.47,124.45,0.05616406]
[1743425369322,0.05580362,124.47,124.45,8.09176406]
[1743425370319,0.05580362,124.47,124.46,8.0353]
[1743425370622,0.05580362,124.47,124.45,0.05616406]
[1743425370814,0.05580362,124.47,124.45,8.09176406]
[1743425371620,0.05580362,124.47,124.45,0.05616406]
[1743425371824,8.0353,124.46,124.45,0.05616406]
[1743425372618,0.05580362,124.47,124.45,0.05616406]